[Event "*** SCC Grand Prix: Titled Tuesday Blitz"]
[Site "Chess.com"]
[Date "2020.07.14"]
[Round "8"]
[White "abykhovsky"]
[Black "SamuelGhimpu2003"]
[Result "1-0"]
[WhiteElo "2721"]
[BlackElo "2598"]
[TimeControl "180+1"]
[EndTime "11:35:13 PDT"]
[Termination "abykhovsky won by resignation"]

1. d4 {[%clk 0:03:00.9]} 1... Nf6 {[%clk 0:02:57.8]} 2. Nf3 {[%clk 0:02:59.5]}
2... e6 {[%clk 0:02:58.7]} 3. c4 {[%clk 0:02:58.7]} 3... d5 {[%clk 0:02:58.3]}
4. Nc3 {[%clk 0:02:58.6]} 4... c6 {[%clk 0:02:57.9]} 5. Bg5 {[%clk 0:02:58.1]}
5... dxc4 {[%clk 0:02:57.5]} 6. e4 {[%clk 0:02:55.8]} 6... b5 {[%clk 0:02:57]}
7. e5 {[%clk 0:02:56.3]} 7... h6 {[%clk 0:02:56.5]} 8. Bh4 {[%clk 0:02:56.5]}
8... g5 {[%clk 0:02:56.7]} 9. Nxg5 {[%clk 0:02:56.9]} 9... hxg5 {[%clk
0:02:57.6]} 10. Bxg5 {[%clk 0:02:57]} 10... Nbd7 {[%clk 0:02:58.5]} 11. exf6
{[%clk 0:02:57.4]} 11... Bb7 {[%clk 0:02:55.2]} 12. g3 {[%clk 0:02:57.4]} 12...
c5 {[%clk 0:02:42.4]} 13. d5 {[%clk 0:02:56.7]} 13... Nb6 {[%clk 0:02:40.7]} 14.
Bg2 {[%clk 0:02:45.2]} 14... b4 {[%clk 0:02:39.4]} 15. Ne4 {[%clk 0:02:32.1]}
15... Bxd5 {[%clk 0:02:21.2]} 16. O-O {[%clk 0:02:29.6]} 16... Qc7 {[%clk
0:02:13.1]} 17. a3 {[%clk 0:02:29.4]} 17... O-O-O {[%clk 0:02:09.6]} 18. Qe2
{[%clk 0:02:26.6]} 18... Kb7 {[%clk 0:01:44.8]} 19. axb4 {[%clk 0:02:24.3]}
19... cxb4 {[%clk 0:01:45.7]} 20. Ra5 {[%clk 0:02:23.9]} 20... Qc6 {[%clk
0:01:13.9]} 21. Rfa1 {[%clk 0:02:21.9]} 21... Ra8 {[%clk 0:01:13.9]} 22. Bf4
{[%clk 0:02:14.7]} 22... a6 {[%clk 0:00:53.4]} 23. h4 {[%clk 0:02:06.7]} 23...
c3 {[%clk 0:00:51.8]} 24. bxc3 {[%clk 0:02:03.7]} 24... bxc3 {[%clk 0:00:52.7]}
25. Rxa6 {[%clk 0:02:02.9]} 25... Bb4 {[%clk 0:00:38.9]} 26. h5 {[%clk
0:01:46.3]} 26... Nc4 {[%clk 0:00:27.6]} 27. Rxc6 {[%clk 0:01:38.5]} 27... Rxa1+
{[%clk 0:00:26.5]} 28. Kh2 {[%clk 0:01:38.7]} 28... Kxc6 {[%clk 0:00:24.5]} 29.
Nxc3 {[%clk 0:01:36.7]} 29... Kc5 {[%clk 0:00:06.4]} 30. Nxd5 {[%clk 0:01:24.3]}
30... exd5 {[%clk 0:00:07.3]} 31. Qe7+ {[%clk 0:01:20.8]} 31... Kb5 {[%clk
0:00:07.7]} 32. Qxf7 {[%clk 0:01:21]} 32... d4 {[%clk 0:00:07.3]} 33. Qd5+
{[%clk 0:01:18.2]} 33... Bc5 {[%clk 0:00:07.6]} 34. Bf3 {[%clk 0:01:16.5]} 34...
Ra3 {[%clk 0:00:03.1]} 1-0

[Event "*** SCC Grand Prix: Titled Tuesday Blitz"]
[Site "Chess.com"]
[Date "2020.07.14"]
[Round "8"]
[White "ARTHURMOTIVATOR"]
[Black "GianmarcoVaR"]
[Result "1-0"]
[WhiteElo "2347"]
[BlackElo "2492"]
[TimeControl "180+1"]
[EndTime "11:35:21 PDT"]
[Termination "ARTHURMOTIVATOR won by resignation"]

1. e4 {[%clk 0:02:55]} 1... c5 {[%clk 0:02:53.7]} 2. Nf3 {[%clk 0:02:52.5]} 2...
d6 {[%clk 0:02:53.9]} 3. d4 {[%clk 0:02:49.9]} 3... cxd4 {[%clk 0:02:54.2]} 4.
Nxd4 {[%clk 0:02:46.8]} 4... Nf6 {[%clk 0:02:52.7]} 5. Nc3 {[%clk 0:02:46.7]}
5... a6 {[%clk 0:02:50]} 6. h3 {[%clk 0:02:45.5]} 6... e6 {[%clk 0:02:34]} 7. g4
{[%clk 0:02:44.3]} 7... Be7 {[%clk 0:02:34.2]} 8. Bg2 {[%clk 0:02:44.3]} 8...
O-O {[%clk 0:02:34.5]} 9. O-O {[%clk 0:02:44.2]} 9... Nc6 {[%clk 0:02:33.2]} 10.
Be3 {[%clk 0:02:10.9]} 10... Qc7 {[%clk 0:02:29.4]} 11. Qe2 {[%clk 0:02:07.4]}
11... Nd7 {[%clk 0:02:21.3]} 12. Rad1 {[%clk 0:02:05.7]} 12... b5 {[%clk
0:02:18.2]} 13. Nxc6 {[%clk 0:01:59.7]} 13... Qxc6 {[%clk 0:02:18.4]} 14. e5
{[%clk 0:01:59.4]} 14... d5 {[%clk 0:02:17.7]} 15. Nxd5 {[%clk 0:01:59.3]} 15...
exd5 {[%clk 0:02:17.8]} 16. Bxd5 {[%clk 0:01:59]} 16... Qc7 {[%clk 0:01:38.4]}
17. Bxa8 {[%clk 0:01:58.2]} 17... Qxe5 {[%clk 0:01:39.3]} 18. Bg2 {[%clk
0:01:44.6]} 18... Qxb2 {[%clk 0:01:34.4]} 19. Bd4 {[%clk 0:01:40.1]} 19... Qa3
{[%clk 0:01:33.5]} 20. Rd3 {[%clk 0:01:33.4]} 20... Qb4 {[%clk 0:01:32]} 21. a3
{[%clk 0:01:32.3]} 21... Qd6 {[%clk 0:01:22.7]} 22. Bxg7 {[%clk 0:01:29.2]}
22... Kxg7 {[%clk 0:01:23.3]} 23. Rxd6 {[%clk 0:01:28.6]} 23... Bxd6 {[%clk
0:01:24.2]} 24. Rd1 {[%clk 0:01:24.3]} 24... Bxa3 {[%clk 0:01:16.5]} 25. Rxd7
{[%clk 0:01:18.7]} 25... Bxd7 {[%clk 0:01:16.3]} 26. Qd3 {[%clk 0:01:18.4]}
26... Rc8 {[%clk 0:01:12.3]} 27. Qxa3 {[%clk 0:01:00.5]} 27... Rxc2 {[%clk
0:01:07.3]} 28. Qxa6 {[%clk 0:00:57.4]} 28... b4 {[%clk 0:01:03.5]} 29. Qd6
{[%clk 0:00:53.8]} 29... b3 {[%clk 0:01:02.8]} 30. Be4 {[%clk 0:00:45.5]} 30...
Rc1+ {[%clk 0:00:50.5]} 31. Kh2 {[%clk 0:00:42.6]} 31... Be6 {[%clk 0:00:51]}
32. Qe5+ {[%clk 0:00:40.7]} 32... Kg8 {[%clk 0:00:50.4]} 33. Qg5+ {[%clk
0:00:39.7]} 33... Kf8 {[%clk 0:00:49.6]} 34. Qxc1 {[%clk 0:00:39.3]} 34... b2
{[%clk 0:00:42.1]} 35. Qxb2 {[%clk 0:00:39]} 1-0

[Event "*** SCC Grand Prix: Titled Tuesday Blitz"]
[Site "Chess.com"]
[Date "2020.07.14"]
[Round "8"]
[White "econpower"]
[Black "Munkhzul_Turmunkh"]
[Result "0-1"]
[WhiteElo "2666"]
[BlackElo "2560"]
[TimeControl "180+1"]
[EndTime "11:35:37 PDT"]
[Termination "Munkhzul_Turmunkh won by checkmate"]

1. c4 {[%clk 0:03:00.9]} 1... e5 {[%clk 0:02:58.2]} 2. g3 {[%clk 0:03:01.4]}
2... Nf6 {[%clk 0:02:57.5]} 3. Bg2 {[%clk 0:03:02.3]} 3... d5 {[%clk 0:02:56.2]}
4. cxd5 {[%clk 0:03:03.2]} 4... Nxd5 {[%clk 0:02:56.6]} 5. Nc3 {[%clk
0:03:04.1]} 5... Nb6 {[%clk 0:02:56.1]} 6. Nf3 {[%clk 0:03:04.7]} 6... Nc6
{[%clk 0:02:55.3]} 7. O-O {[%clk 0:03:05.6]} 7... Be7 {[%clk 0:02:53.4]} 8. Rb1
{[%clk 0:03:06.3]} 8... O-O {[%clk 0:02:40.1]} 9. b4 {[%clk 0:03:05.9]} 9... a6
{[%clk 0:02:35.9]} 10. a4 {[%clk 0:03:04.7]} 10... Bf5 {[%clk 0:02:28.3]} 11. b5
{[%clk 0:03:01.4]} 11... Nd4 {[%clk 0:02:23]} 12. d3 {[%clk 0:02:55.4]} 12...
axb5 {[%clk 0:02:09.3]} 13. axb5 {[%clk 0:02:24.7]} 13... f6 {[%clk 0:01:57.8]}
14. Nh4 {[%clk 0:02:10.5]} 14... Bg4 {[%clk 0:01:51.7]} 15. h3 {[%clk
0:01:58.7]} 15... Na4 {[%clk 0:01:24.2]} 16. Nxa4 {[%clk 0:01:57.3]} 16... Bxe2
{[%clk 0:01:22.9]} 17. Qd2 {[%clk 0:01:50.6]} 17... Bxf1 {[%clk 0:01:22.4]} 18.
Qa2+ {[%clk 0:01:49.9]} 18... Kh8 {[%clk 0:01:18.1]} 19. Bxf1 {[%clk 0:01:50.4]}
19... f5 {[%clk 0:01:05.1]} 20. Ng2 {[%clk 0:01:46.7]} 20... Nf3+ {[%clk
0:01:04.5]} 21. Kh1 {[%clk 0:01:46.7]} 21... Qd4 {[%clk 0:00:52.1]} 22. Qe2
{[%clk 0:01:31.8]} 22... Qxa4 {[%clk 0:00:50.3]} 23. Qxf3 {[%clk 0:01:31.2]}
23... Qc2 {[%clk 0:00:49.2]} 24. Bg5 {[%clk 0:01:24.7]} 24... Qxb1 {[%clk
0:00:48.1]} 25. Bxe7 {[%clk 0:01:24.5]} 25... Qxf1+ {[%clk 0:00:48.1]} 26. Kh2
{[%clk 0:01:25.4]} 26... Rf7 {[%clk 0:00:47.8]} 27. Ne3 {[%clk 0:01:24.2]} 27...
Qxd3 {[%clk 0:00:46.8]} 28. Qxb7 {[%clk 0:01:24.1]} 28... Rg8 {[%clk 0:00:45]}
29. Bc5 {[%clk 0:01:22.7]} 29... Qe2 {[%clk 0:00:43]} 30. Nd5 {[%clk 0:01:19.5]}
30... f4 {[%clk 0:00:40.1]} 31. g4 {[%clk 0:01:17.3]} 31... f3 {[%clk 0:00:39]}
32. Kg3 {[%clk 0:01:04.3]} 32... Qf1 {[%clk 0:00:38.3]} 33. Be3 {[%clk
0:00:59.7]} 33... Qg2+ {[%clk 0:00:38.1]} 34. Kh4 {[%clk 0:01:00.1]} 34... h6
{[%clk 0:00:31.6]} 35. g5 {[%clk 0:01:00.3]} 35... hxg5+ {[%clk 0:00:30.7]} 36.
Bxg5 {[%clk 0:01:01.2]} 36... Qxf2+ {[%clk 0:00:30.7]} 37. Kh5 {[%clk
0:01:01.5]} 37... Qg3 {[%clk 0:00:29.3]} 38. h4 {[%clk 0:00:36.1]} 38... g6+
{[%clk 0:00:28.7]} 39. Kh6 {[%clk 0:00:36]} 39... Rh7# {[%clk 0:00:29.6]} 0-1

[Event "*** SCC Grand Prix: Titled Tuesday Blitz"]
[Site "Chess.com"]
[Date "2020.07.14"]
[Round "8"]
[White "enzovsky"]
[Black "TheCount"]
[Result "1-0"]
[WhiteElo "2549"]
[BlackElo "2701"]
[TimeControl "180+1"]
[EndTime "11:35:38 PDT"]
[Termination "enzovsky won on time"]

1. e4 {[%clk 0:03:00.9]} 1... c5 {[%clk 0:02:58.5]} 2. Nf3 {[%clk 0:03:00.8]}
2... Nc6 {[%clk 0:02:58.6]} 3. d4 {[%clk 0:03:01.7]} 3... cxd4 {[%clk
0:02:59.4]} 4. Nxd4 {[%clk 0:03:02.6]} 4... Qb6 {[%clk 0:02:59.7]} 5. Nb3 {[%clk
0:03:00.1]} 5... Nf6 {[%clk 0:02:58.7]} 6. Nc3 {[%clk 0:02:59.6]} 6... e6 {[%clk
0:02:59.1]} 7. a3 {[%clk 0:02:59.5]} 7... Qc7 {[%clk 0:02:58.4]} 8. f4 {[%clk
0:02:56.2]} 8... d6 {[%clk 0:02:58.2]} 9. Qe2 {[%clk 0:02:55.9]} 9... a6 {[%clk
0:02:53.1]} 10. Be3 {[%clk 0:02:55.7]} 10... Be7 {[%clk 0:02:53.2]} 11. g4
{[%clk 0:02:54.4]} 11... b5 {[%clk 0:02:51.4]} 12. O-O-O {[%clk 0:02:52.5]}
12... Bb7 {[%clk 0:02:49.3]} 13. g5 {[%clk 0:02:51.1]} 13... Nd7 {[%clk
0:02:49.4]} 14. h4 {[%clk 0:02:50.6]} 14... b4 {[%clk 0:02:44.1]} 15. axb4
{[%clk 0:02:48.1]} 15... Nxb4 {[%clk 0:02:45]} 16. h5 {[%clk 0:02:48.7]} 16...
a5 {[%clk 0:02:37.9]} 17. g6 {[%clk 0:02:45.7]} 17... hxg6 {[%clk 0:02:37.8]}
18. Bh3 {[%clk 0:02:41.9]} 18... Rxh5 {[%clk 0:02:22.8]} 19. Bxe6 {[%clk
0:02:33.4]} 19... fxe6 {[%clk 0:01:58.6]} 20. Rxh5 {[%clk 0:02:29.3]} 20... gxh5
{[%clk 0:01:59.5]} 21. Qxh5+ {[%clk 0:02:29.8]} 21... Kd8 {[%clk 0:02:00]} 22.
Nd4 {[%clk 0:02:26.4]} 22... Qc4 {[%clk 0:01:53.5]} 23. b3 {[%clk 0:02:15.7]}
23... Nf6 {[%clk 0:01:19.1]} 24. Qh8+ {[%clk 0:02:14.3]} 24... Kd7 {[%clk
0:01:02.4]} 25. Qxa8 {[%clk 0:02:09.6]} 25... Qxc3 {[%clk 0:01:02.6]} 26. Qxb7+
{[%clk 0:02:03.2]} 26... Ke8 {[%clk 0:01:02.7]} 27. e5 {[%clk 0:01:57.2]} 27...
Qxe3+ {[%clk 0:00:53.6]} 28. Kb1 {[%clk 0:01:55.2]} 28... dxe5 {[%clk
0:00:30.9]} 29. Qc8+ {[%clk 0:01:54.6]} 29... Kf7 {[%clk 0:00:27.5]} 30. Qxe6+
{[%clk 0:01:55.5]} 30... Kf8 {[%clk 0:00:21.5]} 31. Rh1 {[%clk 0:01:55.7]} 31...
Ng8 {[%clk 0:00:13.7]} 32. Qf5+ {[%clk 0:01:48.5]} 32... Bf6 {[%clk 0:00:11.6]}
33. Ne6+ {[%clk 0:01:45.5]} 33... Ke7 {[%clk 0:00:11.5]} 34. Nxg7 {[%clk
0:01:42.2]} 34... Bxg7 {[%clk 0:00:09.9]} 35. Qg6 {[%clk 0:01:42.3]} 35... Kf8
{[%clk 0:00:07.8]} 36. Rg1 {[%clk 0:01:40.6]} 36... Qxg1+ {[%clk 0:00:04.1]} 37.
Qxg1 {[%clk 0:01:41.5]} 37... exf4 {[%clk 0:00:04.4]} 38. Qc5+ {[%clk
0:01:37.1]} 38... Ne7 {[%clk 0:00:04.2]} 39. Qxa5 {[%clk 0:01:36.7]} 39... Nbd5
{[%clk 0:00:04.5]} 40. c4 {[%clk 0:01:35.1]} 40... Nc3+ {[%clk 0:00:04.8]} 41.
Kc2 {[%clk 0:01:35.2]} 41... Kf7 {[%clk 0:00:04.8]} 42. b4 {[%clk 0:01:32.6]}
42... f3 {[%clk 0:00:03.9]} 43. Qh5+ {[%clk 0:01:30.6]} 43... Ke6 {[%clk
0:00:03.9]} 44. Qxf3 {[%clk 0:01:30.2]} 44... Nf5 {[%clk 0:00:04.5]} 45. Qc6+
{[%clk 0:01:24.8]} 45... Ke7 {[%clk 0:00:02.3]} 46. Kd3 {[%clk 0:01:21.6]} 46...
Nd6 {[%clk 0:00:01.4]} 47. b5 {[%clk 0:01:19.7]} 1-0

[Event "*** SCC Grand Prix: Titled Tuesday Blitz"]
[Site "Chess.com"]
[Date "2020.07.14"]
[Round "8"]
[White "AlanZhang"]
[Black "TurboSteen"]
[Result "0-1"]
[WhiteElo "2204"]
[BlackElo "1967"]
[TimeControl "180+1"]
[EndTime "11:35:38 PDT"]
[Termination "TurboSteen won on time"]

1. e4 {[%clk 0:02:55.6]} 1... e6 {[%clk 0:02:57.2]} 2. d4 {[%clk 0:02:54.6]}
2... d5 {[%clk 0:02:57.6]} 3. Nc3 {[%clk 0:02:53.9]} 3... Bb4 {[%clk 0:02:55.2]}
4. e5 {[%clk 0:02:54]} 4... Ne7 {[%clk 0:02:55]} 5. a3 {[%clk 0:02:53.8]} 5...
Bxc3+ {[%clk 0:02:55.2]} 6. bxc3 {[%clk 0:02:54.7]} 6... c5 {[%clk 0:02:54.6]}
7. Nf3 {[%clk 0:02:54.1]} 7... h6 {[%clk 0:02:52.1]} 8. h4 {[%clk 0:02:51.6]}
8... b6 {[%clk 0:02:47.3]} 9. g4 {[%clk 0:02:49.8]} 9... Ba6 {[%clk 0:02:45]}
10. Bd3 {[%clk 0:02:48.3]} 10... Qc7 {[%clk 0:02:40]} 11. O-O {[%clk 0:02:29.3]}
11... Bxd3 {[%clk 0:02:34.2]} 12. Qxd3 {[%clk 0:02:21.8]} 12... Nbc6 {[%clk
0:02:32.8]} 13. h5 {[%clk 0:01:45.3]} 13... O-O-O {[%clk 0:02:28.7]} 14. Be3
{[%clk 0:01:40.6]} 14... c4 {[%clk 0:02:23.3]} 15. Qe2 {[%clk 0:01:38.2]} 15...
f6 {[%clk 0:02:20]} 16. Bf4 {[%clk 0:01:26.4]} 16... f5 {[%clk 0:02:16.6]} 17.
Nh4 {[%clk 0:01:19.3]} 17... Rdf8 {[%clk 0:02:04.5]} 18. Bh2 {[%clk 0:01:05.3]}
18... Rhg8 {[%clk 0:02:00.4]} 19. f4 {[%clk 0:00:55]} 19... g5 {[%clk
0:01:55.5]} 20. hxg6 {[%clk 0:00:31.7]} 20... Nxg6 {[%clk 0:01:53.4]} 21. Ng2
{[%clk 0:00:17.5]} 21... fxg4 {[%clk 0:01:47.3]} 22. Qxg4 {[%clk 0:00:16.6]}
22... Qf7 {[%clk 0:01:43.8]} 23. Qh3 {[%clk 0:00:12.3]} 23... Nge7 {[%clk
0:01:38.4]} 24. Kh1 {[%clk 0:00:09.8]} 24... Qf5 {[%clk 0:01:36.1]} 25. Qxf5
{[%clk 0:00:05.5]} 25... Nxf5 {[%clk 0:01:34.7]} 26. Rf3 {[%clk 0:00:04.5]}
26... h5 {[%clk 0:01:31.1]} 27. Ne3 {[%clk 0:00:04.3]} 27... Nce7 {[%clk
0:01:25.7]} 28. Rg1 {[%clk 0:00:03.2]} 28... Nxe3 {[%clk 0:01:21.8]} 29. Rxe3
{[%clk 0:00:03.1]} 29... Nf5 {[%clk 0:01:18.5]} 30. Rh3 {[%clk 0:00:02.9]} 30...
h4 {[%clk 0:01:12.7]} 31. Rf3 {[%clk 0:00:03.2]} 31... Kb7 {[%clk 0:01:09.5]}
32. Rxg8 {[%clk 0:00:02.3]} 32... Rxg8 {[%clk 0:01:07.6]} 33. Bg1 {[%clk
0:00:02.4]} 33... Ka6 {[%clk 0:01:02.5]} 34. Kh2 {[%clk 0:00:02.5]} 34... Ka5
{[%clk 0:01:02.1]} 35. Rf1 {[%clk 0:00:01.9]} 35... Ka4 {[%clk 0:01:01.4]} 36.
Ra1 {[%clk 0:00:01.3]} 36... Rg3 {[%clk 0:00:56]} 0-1

[Event "*** SCC Grand Prix: Titled Tuesday Blitz"]
[Site "Chess.com"]
[Date "2020.07.14"]
[Round "8"]
[White "SGchess01"]
[Black "VMikhalevski"]
[Result "0-1"]
[WhiteElo "2628"]
[BlackElo "2794"]
[TimeControl "180+1"]
[EndTime "11:35:41 PDT"]
[Termination "VMikhalevski won by resignation"]

1. Nf3 {[%clk 0:03:00.9]} 1... Nf6 {[%clk 0:02:58.6]} 2. g3 {[%clk 0:03:00.7]}
2... g6 {[%clk 0:02:58]} 3. Bg2 {[%clk 0:03:01.6]} 3... Bg7 {[%clk 0:02:58.3]}
4. O-O {[%clk 0:03:01.6]} 4... O-O {[%clk 0:02:58.2]} 5. d4 {[%clk 0:03:01.9]}
5... d5 {[%clk 0:02:57.8]} 6. c4 {[%clk 0:03:01.9]} 6... c6 {[%clk 0:02:58.2]}
7. b3 {[%clk 0:03:00.3]} 7... a5 {[%clk 0:02:56.5]} 8. Nc3 {[%clk 0:02:59]} 8...
Ne4 {[%clk 0:02:55.2]} 9. Bb2 {[%clk 0:02:56.2]} 9... Bf5 {[%clk 0:02:54.7]} 10.
Nh4 {[%clk 0:02:45.7]} 10... Nxc3 {[%clk 0:02:54.1]} 11. Bxc3 {[%clk 0:02:46.6]}
11... Be6 {[%clk 0:02:54.5]} 12. Qd3 {[%clk 0:02:45.6]} 12... Na6 {[%clk
0:02:45.1]} 13. e3 {[%clk 0:02:26]} 13... dxc4 {[%clk 0:02:35.7]} 14. bxc4
{[%clk 0:02:25.5]} 14... Nb4 {[%clk 0:02:35.9]} 15. Qe2 {[%clk 0:02:24.8]} 15...
c5 {[%clk 0:02:28.8]} 16. Rac1 {[%clk 0:02:06.9]} 16... cxd4 {[%clk 0:02:12.9]}
17. exd4 {[%clk 0:02:05.4]} 17... Qd7 {[%clk 0:02:02.9]} 18. a3 {[%clk
0:01:48.6]} 18... Na6 {[%clk 0:02:00.4]} 19. Rfd1 {[%clk 0:01:39.4]} 19... Rac8
{[%clk 0:01:51.8]} 20. d5 {[%clk 0:01:08.2]} 20... Bg4 {[%clk 0:01:51]} 21. f3
{[%clk 0:01:07.4]} 21... Bxc3 {[%clk 0:01:47.2]} 22. Rxc3 {[%clk 0:01:06.7]}
22... Bh3 {[%clk 0:01:46.4]} 23. Bxh3 {[%clk 0:01:04.8]} 23... Qxh3 {[%clk
0:01:45.9]} 24. Qxe7 {[%clk 0:01:05.4]} 24... Rfe8 {[%clk 0:01:43]} 25. d6
{[%clk 0:00:34.3]} 25... Rxe7 {[%clk 0:01:36.6]} 26. dxe7 {[%clk 0:00:35.2]}
26... Re8 {[%clk 0:01:36.6]} 27. Rd8 {[%clk 0:00:34.6]} 27... Nc7 {[%clk
0:01:37.2]} 28. Rcd3 {[%clk 0:00:33.1]} 28... Qe6 {[%clk 0:01:29.5]} 29. R3d7
{[%clk 0:00:32.4]} 29... Kg7 {[%clk 0:01:20.3]} 30. Rxc7 {[%clk 0:00:29]} 30...
Rxe7 {[%clk 0:01:19.6]} 31. Rcc8 {[%clk 0:00:26.9]} 31... Qe1+ {[%clk
0:01:16.5]} 32. Kg2 {[%clk 0:00:27.1]} 32... Re2+ {[%clk 0:01:14.8]} 33. Kh3
{[%clk 0:00:27.5]} 33... h5 {[%clk 0:01:10]} 34. g4 {[%clk 0:00:05.8]} 34... Qf2
{[%clk 0:01:07.2]} 35. Nf5+ {[%clk 0:00:03.4]} 35... gxf5 {[%clk 0:01:06]} 36.
Rg8+ {[%clk 0:00:03.8]} 36... Kf6 {[%clk 0:01:04]} 37. g5+ {[%clk 0:00:04.4]}
37... Ke5 {[%clk 0:01:03.8]} 38. Rge8+ {[%clk 0:00:02.9]} 38... Kf4 {[%clk
0:01:03.4]} 0-1

[Event "*** SCC Grand Prix: Titled Tuesday Blitz"]
[Site "Chess.com"]
[Date "2020.07.14"]
[Round "8"]
[White "ChessBitl"]
[Black "MergenKakabaev"]
[Result "0-1"]
[WhiteElo "2301"]
[BlackElo "2431"]
[TimeControl "180+1"]
[EndTime "11:35:41 PDT"]
[Termination "MergenKakabaev won by resignation"]

1. e4 {[%clk 0:03:00.5]} 1... e6 {[%clk 0:02:55.9]} 2. d4 {[%clk 0:02:59.3]}
2... d5 {[%clk 0:02:55.4]} 3. Nd2 {[%clk 0:02:59.8]} 3... dxe4 {[%clk
0:02:54.8]} 4. Nxe4 {[%clk 0:02:59.5]} 4... Nd7 {[%clk 0:02:55.5]} 5. Bd3 {[%clk
0:02:58.5]} 5... Ngf6 {[%clk 0:02:55]} 6. Qe2 {[%clk 0:02:56.7]} 6... b6 {[%clk
0:02:54]} 7. Nf3 {[%clk 0:02:54.1]} 7... Bb7 {[%clk 0:02:53.8]} 8. O-O {[%clk
0:02:53.2]} 8... Be7 {[%clk 0:02:53.7]} 9. b3 {[%clk 0:02:52.6]} 9... O-O {[%clk
0:02:53.1]} 10. Bb2 {[%clk 0:02:53]} 10... Nxe4 {[%clk 0:02:53.1]} 11. Bxe4
{[%clk 0:02:52.7]} 11... Bxe4 {[%clk 0:02:54]} 12. Qxe4 {[%clk 0:02:52.9]} 12...
c5 {[%clk 0:02:53.6]} 13. Rad1 {[%clk 0:02:50.7]} 13... Qc7 {[%clk 0:02:52.2]}
14. c4 {[%clk 0:02:48]} 14... Bf6 {[%clk 0:02:48.5]} 15. Rfe1 {[%clk 0:02:44.4]}
15... Rad8 {[%clk 0:02:46.9]} 16. Qe2 {[%clk 0:02:43.2]} 16... cxd4 {[%clk
0:02:44.8]} 17. Nxd4 {[%clk 0:02:42.6]} 17... a6 {[%clk 0:02:38.9]} 18. Rd2
{[%clk 0:02:29.3]} 18... Nc5 {[%clk 0:02:20.7]} 19. Red1 {[%clk 0:02:24.9]}
19... Rd7 {[%clk 0:02:19.8]} 20. Ba3 {[%clk 0:02:15.8]} 20... Rfd8 {[%clk
0:02:17.4]} 21. Bxc5 {[%clk 0:02:13.6]} 21... Qxc5 {[%clk 0:02:08.4]} 22. Nf3
{[%clk 0:01:53.8]} 22... Rxd2 {[%clk 0:02:07.5]} 23. Rxd2 {[%clk 0:01:54]} 23...
Rxd2 {[%clk 0:02:06.6]} 24. Nxd2 {[%clk 0:01:54]} 24... Qd4 {[%clk 0:02:02.7]}
25. g3 {[%clk 0:01:35.5]} 25... Qa1+ {[%clk 0:01:59.7]} 26. Nf1 {[%clk
0:01:35.5]} 26... g6 {[%clk 0:01:59.4]} 27. Kg2 {[%clk 0:01:35.2]} 27... Bd4
{[%clk 0:01:58.4]} 28. Ne3 {[%clk 0:01:27.6]} 28... Bxe3 {[%clk 0:01:56.8]} 29.
fxe3 {[%clk 0:01:27.8]} 29... Qc3 {[%clk 0:01:52]} 30. e4 {[%clk 0:01:27.5]}
30... e5 {[%clk 0:01:51.6]} 31. Kf2 {[%clk 0:01:26.6]} 31... Kg7 {[%clk
0:01:49.6]} 32. Qe3 {[%clk 0:01:26.5]} 32... Qb2+ {[%clk 0:01:47.7]} 33. Qe2
{[%clk 0:01:26.7]} 33... Qa1 {[%clk 0:01:45.5]} 34. Qd2 {[%clk 0:01:17.4]} 34...
a5 {[%clk 0:01:40.7]} 35. Ke3 {[%clk 0:01:17.1]} 35... Qg1+ {[%clk 0:01:34.3]}
36. Kd3 {[%clk 0:01:14.8]} 36... Qd4+ {[%clk 0:01:32.9]} 37. Kc2 {[%clk
0:01:14.8]} 37... Qxe4+ {[%clk 0:01:33.1]} 38. Qd3 {[%clk 0:01:09.9]} 38...
Qxd3+ {[%clk 0:01:33.1]} 39. Kxd3 {[%clk 0:01:10.4]} 39... f5 {[%clk 0:01:34]}
40. a3 {[%clk 0:01:10.3]} 40... Kf6 {[%clk 0:01:33.6]} 41. b4 {[%clk 0:01:10.4]}
41... axb4 {[%clk 0:01:34.5]} 42. axb4 {[%clk 0:01:10.8]} 42... Ke6 {[%clk
0:01:35]} 43. Ke3 {[%clk 0:01:10.6]} 43... Kd6 {[%clk 0:01:35]} 44. Kd3 {[%clk
0:01:10.9]} 44... e4+ {[%clk 0:01:30.2]} 45. Kd4 {[%clk 0:01:09.5]} 45... Ke6
{[%clk 0:01:30.5]} 46. Ke3 {[%clk 0:01:05]} 46... Ke5 {[%clk 0:01:30.3]} 47. h3
{[%clk 0:00:56.5]} 47... g5 {[%clk 0:01:29.2]} 48. h4 {[%clk 0:00:56.8]} 48...
f4+ {[%clk 0:01:28.1]} 49. Kf2 {[%clk 0:00:55.5]} 49... h6 {[%clk 0:01:27.1]}
50. h5 {[%clk 0:00:51.5]} 50... Kd4 {[%clk 0:01:26.4]} 51. gxf4 {[%clk
0:00:41.1]} 51... gxf4 {[%clk 0:01:25.2]} 52. c5 {[%clk 0:00:42]} 52... bxc5
{[%clk 0:01:24.1]} 53. b5 {[%clk 0:00:42.4]} 53... Kd5 {[%clk 0:01:23.1]} 54. b6
{[%clk 0:00:43]} 54... Kc6 {[%clk 0:01:22.9]} 55. Kg2 {[%clk 0:00:43.5]} 55...
Kxb6 {[%clk 0:01:23]} 56. Kh3 {[%clk 0:00:44.1]} 56... e3 {[%clk 0:01:22.2]} 57.
Kg4 {[%clk 0:00:44.2]} 57... e2 {[%clk 0:01:22.6]} 58. Kf5 {[%clk 0:00:44.8]}
58... e1=Q {[%clk 0:01:23.2]} 59. Kg6 {[%clk 0:00:45.3]} 59... Qe6+ {[%clk
0:01:22.7]} 60. Kg7 {[%clk 0:00:44.4]} 60... f3 {[%clk 0:01:22.7]} 0-1

[Event "*** SCC Grand Prix: Titled Tuesday Blitz"]
[Site "Chess.com"]
[Date "2020.07.14"]
[Round "8"]
[White "GM_Levan_Pantsulaia"]
[Black "oskariot"]
[Result "1-0"]
[WhiteElo "2829"]
[BlackElo "2651"]
[TimeControl "180+1"]
[EndTime "11:35:43 PDT"]
[Termination "GM_Levan_Pantsulaia won by resignation"]

1. Nf3 {[%clk 0:02:57.5]} 1... e6 {[%clk 0:03:00.9]} 2. g3 {[%clk 0:02:57]} 2...
b6 {[%clk 0:03:01.8]} 3. Bg2 {[%clk 0:02:57.7]} 3... Bb7 {[%clk 0:03:02.7]} 4.
O-O {[%clk 0:02:58]} 4... c5 {[%clk 0:03:01.2]} 5. c4 {[%clk 0:02:56.8]} 5...
Nf6 {[%clk 0:03:01.3]} 6. Nc3 {[%clk 0:02:57.4]} 6... Be7 {[%clk 0:03:01]} 7. d4
{[%clk 0:02:56.8]} 7... cxd4 {[%clk 0:03:01.9]} 8. Qxd4 {[%clk 0:02:57.5]} 8...
a6 {[%clk 0:03:00]} 9. Bg5 {[%clk 0:02:54.4]} 9... d6 {[%clk 0:02:57]} 10. Bxf6
{[%clk 0:02:54.1]} 10... Bxf6 {[%clk 0:02:55.8]} 11. Qf4 {[%clk 0:02:53.8]}
11... Be7 {[%clk 0:02:48]} 12. Rfd1 {[%clk 0:02:52.3]} 12... O-O {[%clk
0:02:45.1]} 13. Ne4 {[%clk 0:02:51.3]} 13... Bxe4 {[%clk 0:02:45.1]} 14. Qxe4
{[%clk 0:02:52.2]} 14... Ra7 {[%clk 0:02:45.7]} 15. Nd4 {[%clk 0:02:52.5]} 15...
Qc8 {[%clk 0:02:40.4]} 16. Rac1 {[%clk 0:02:52.2]} 16... Rc7 {[%clk 0:02:39.5]}
17. a3 {[%clk 0:01:20.7]} 17... d5 {[%clk 0:02:16]} 18. Qe3 {[%clk 0:01:11.6]}
18... dxc4 {[%clk 0:02:06.3]} 19. Bh3 {[%clk 0:01:08.8]} 19... Bc5 {[%clk
0:01:58.9]} 20. Rxc4 {[%clk 0:01:07.4]} 20... b5 {[%clk 0:01:54.3]} 21. Rxc5
{[%clk 0:00:59.9]} 21... Rxc5 {[%clk 0:01:55.2]} 22. Nxe6 {[%clk 0:00:57.9]}
22... Rh5 {[%clk 0:01:37.9]} 23. Bg4 {[%clk 0:00:40.6]} 23... Qc2 {[%clk
0:00:09.7]} 24. Rc1 {[%clk 0:00:38]} 24... Re5 {[%clk 0:00:09.8]} 25. Rxc2
{[%clk 0:00:29.2]} 25... Rxe3 {[%clk 0:00:09.5]} 1-0